bitfinex/quotes_BTCUSD_20250527
["timestamp","ask_amount","ask_price","bid_price","bid_amount"]
[1748378502213,0.72792775,109790.0,109780.0,36.81284544]
[1748378502458,0.72092775,109790.0,109780.0,36.81284544]
[1748378502632,0.72692775,109790.0,109780.0,36.81384544]
[1748378502841,0.8179817,109790.0,109780.0,36.81384544]
[1748378503854,0.8239817,109790.0,109780.0,36.81484544]
[1748378504683,0.88692896,109790.0,109780.0,36.81484544]
[1748378505113,1.60316439,109790.0,109780.0,36.81484544]
[1748378505339,0.96809229,109790.0,109780.0,36.79350243]
[1748378505546,1.60319545,109790.0,109780.0,36.79350243]
[1748378505971,1.60320479,109790.0,109780.0,36.79350243]
[1748378507251,1.51215084,109790.0,109780.0,36.79350243]
[1748378508707,1.51217261,109790.0,109780.0,36.79350243]
[1748378509335,1.47996193,109790.0,109780.0,36.79350243]
[1748378509545,1.51217838,109790.0,109780.0,36.79350243]
[1748378510175,1.44916318,109790.0,109780.0,36.79350243]
[1748378510386,1.47998829,109790.0,109780.0,36.79350243]
[1748378511626,1.44916318,109790.0,109780.0,36.79350243]
[1748378512043,1.47999514,109790.0,109780.0,36.79350243]
[1748378512456,1.57104909,109790.0,109780.0,36.79350243]
[1748378512887,1.57105331,109790.0,109780.0,36.79350243]
[1748378513093,1.56169951,109790.0,109780.0,36.79350243]
[1748378514876,1.56169951,109790.0,109780.0,36.73330243]
[1748378514877,6.78037951,109790.0,109780.0,36.73330243]
[1748378515244,7.78624083,109790.0,109780.0,36.23259113]
[1748378515369,7.82736737,109790.0,109780.0,36.23259113]
[1748378515586,7.83210112,109790.0,109780.0,36.2253069]
[1748378516017,7.83210112,109790.0,109780.0,36.21802267]
[1748378516445,7.83210112,109790.0,109780.0,36.21073844]
[1748378516865,7.83210112,109790.0,109780.0,36.20345421]
[1748378517277,7.79572667,109790.0,109780.0,36.19540998]
[1748378517712,7.79572667,109790.0,109780.0,36.18812575]
[1748378517915,7.79572667,109790.0,109780.0,36.18084152]
[1748378518336,7.79572667,109790.0,109780.0,36.17355729]
[1748378518545,7.19281178,109790.0,109780.0,36.17355729]
[1748378518780,7.79572667,109790.0,109780.0,36.16627306]
[1748378518987,7.11961538,109790.0,109780.0,36.16627306]
[1748378519199,7.69746895,109790.0,109780.0,36.15898883]
[1748378519631,7.69746895,109790.0,109780.0,36.15170245]
[1748378520031,7.69746895,109790.0,109780.0,36.14441607]
[1748378520903,7.60166895,109790.0,109780.0,36.14441607]
[1748378525136,7.64265334,109790.0,109780.0,36.14441607]
[1748378525352,7.64265334,109790.0,109780.0,36.09561341]
[1748378527794,6.67217522,109790.0,109780.0,36.09561341]
[1748378528000,6.67217522,109790.0,109780.0,36.16151341]
[1748378528001,1.63711935,109790.0,109780.0,36.16151341]
[1748378528222,1.61153606,109790.0,109780.0,36.16151341]
[1748378528424,1.32897606,109790.0,109780.0,36.16151341]
[1748378528654,1.62607691,109790.0,109780.0,36.16151341]
[1748378529490,1.62127691,109790.0,109780.0,36.16151341]
[1748378530328,1.62123691,109790.0,109780.0,36.16151341]
[1748378530524,1.33851691,109790.0,109780.0,36.16151341]
[1748378530724,1.62119691,109790.0,109780.0,36.16151341]
[1748378531985,1.63119691,109790.0,109780.0,36.16151341]
[1748378532217,1.63119691,109790.0,109780.0,36.09561341]
[1748378532698,1.63119691,109790.0,109780.0,36.15931341]
[1748378535232,1.65669016,109790.0,109780.0,36.15931341]
[1748378536814,1.65669016,109790.0,109780.0,36.12871341]
[1748378537018,7.85516704,109790.0,109780.0,36.09561341]
[1748378537227,7.876981,109790.0,109780.0,36.09561341]
[1748378537425,7.871081,109790.0,109780.0,36.09561341]
[1748378537635,7.84841052,109790.0,109780.0,36.09561341]
[1748378539086,2.79841052,109790.0,109780.0,36.09561341]
[1748378539302,7.80743524,109790.0,109780.0,36.09561341]
[1748378539514,7.84841052,109790.0,109780.0,36.12631341]
[1748378540410,7.8066826,109790.0,109780.0,36.09157897]
[1748378540633,7.93321379,109790.0,109780.0,36.02900754]
[1748378540892,7.92731379,109790.0,109780.0,36.02172265]
[1748378541148,7.90464331,109790.0,109780.0,35.97619204]
[1748378541421,7.90464331,109790.0,109780.0,36.03481464]
[1748378541422,6.84626216,109790.0,109780.0,36.03481464]
[1748378541631,7.10306136,109790.0,109780.0,36.03481464]
[1748378541840,7.40206616,109790.0,109780.0,35.92528403]
[1748378542264,7.40206616,109790.0,109780.0,35.87975342]
[1748378542472,7.40206616,109790.0,109780.0,35.83422281]
[1748378542892,7.40206616,109790.0,109780.0,35.78868679]
[1748378543102,7.40206616,109790.0,109780.0,35.74315077]
[1748378544545,7.40206768,109790.0,109780.0,35.74315077]
[1748378545368,7.40206768,109790.0,109780.0,35.67626494]
[1748378545581,7.40206768,109790.0,109780.0,35.66742694]
[1748378545794,7.41416768,109790.0,109780.0,35.66742694]
[1748378546001,7.41416768,109790.0,109780.0,35.62189092]
[1748378546210,7.41416768,109790.0,109780.0,35.5763549]
[1748378546655,7.41416768,109790.0,109780.0,35.52694888]
[1748378546869,7.41416768,109790.0,109780.0,35.48141286]
[1748378547282,7.40216768,109790.0,109780.0,35.43387684]
[1748378547492,7.41416768,109790.0,109780.0,35.38834082]
[1748378547699,7.70206768,109790.0,109780.0,35.38381082]
[1748378547912,7.70206768,109790.0,109780.0,35.44891082]
[1748378548751,7.70208052,109790.0,109780.0,35.44650082]
[1748378549575,7.70208052,109790.0,109780.0,35.42120082]
[1748378549782,7.70208052,109790.0,109780.0,35.35096082]
[1748378552465,7.70828052,109790.0,109780.0,35.3054225]
[1748378552668,7.75828052,109790.0,109780.0,35.2720225]
[1748378552875,7.75209746,109790.0,109780.0,35.2720225]
[1748378553327,7.75209746,109790.0,109780.0,35.22648418]
[1748378553532,7.75209746,109790.0,109780.0,35.18094586]
[1748378553960,7.16128257,109790.0,109780.0,35.16376356]
[1748378554163,7.75209746,109790.0,109780.0,35.11822524]
[1748378554367,7.75209746,109790.0,109780.0,35.07268692]
[1748378554753,7.75209746,109790.0,109780.0,35.0271486]
[1748378554958,7.75209746,109790.0,109780.0,34.98161028]
[1748378555174,8.36091235,109790.0,109780.0,34.05662793]
[1748378555383,8.56688582,109790.0,109780.0,32.72342051]
[1748378555592,8.74996889,109790.0,109780.0,32.31672506]
[1748378555797,8.69058428,109790.0,109780.0,32.15771967]
[1748378556011,8.68458428,109790.0,109780.0,32.09033527]
[1748378556218,7.99937727,109790.0,109780.0,31.95229472]
[1748378556426,6.81654749,109790.0,109780.0,31.95229472]
[1748378556657,7.96127211,109790.0,109780.0,30.56980024]
[1748378556884,7.93223,109790.0,109780.0,30.56251411]
[1748378557092,7.93223,109790.0,109780.0,30.47151411]
[1748378557294,7.98623,109790.0,109780.0,30.34135116]
[1748378557461,8.00100241,109790.0,109780.0,30.34135116]
[1748378557707,8.00100241,109790.0,109780.0,30.24306503]
[1748378557897,7.98623,109790.0,109780.0,29.10132732]
[1748378558055,7.98623,109790.0,109780.0,28.99851619]
[1748378558252,7.98623,109790.0,109780.0,28.89557742]
[1748378558469,8.02800241,109790.0,109780.0,28.85641447]
[1748378558690,8.02800241,109790.0,109780.0,28.75979447]
[1748378558888,8.02800241,109790.0,109780.0,28.66150834]
[1748378559090,8.02800241,109790.0,109780.0,28.53763152]
[1748378559290,8.02800241,109790.0,109780.0,28.43934539]
[1748378559497,6.53829285,109790.0,109780.0,28.43934539]
[1748378559707,6.73595505,109790.0,109780.0,28.42640623]
[1748378559904,6.73595505,109790.0,109780.0,28.38090623]
[1748378560156,2.28886994,109790.0,109780.0,28.37361707]
[1748378560372,7.2978614,109790.0,109780.0,28.32811707]
[1748378560519,6.73595505,109790.0,109780.0,28.32082791]
[1748378560728,6.73595505,109790.0,109780.0,28.27532791]
[1748378560729,6.45143505,109790.0,109780.0,28.27532791]
[1748378560934,6.73587505,109790.0,109780.0,27.78190084]
[1748378561145,6.77762256,109790.0,109780.0,27.73634359]
[1748378561357,6.77762256,109790.0,109780.0,27.69078634]
[1748378561820,6.77762256,109790.0,109780.0,27.64523634]
[1748378562226,6.77754256,109790.0,109780.0,27.59967909]
[1748378562848,6.77754256,109790.0,109780.0,27.55412184]
[1748378563285,6.77754256,109790.0,109780.0,27.50856459]
[1748378563692,6.77754256,109790.0,109780.0,27.46300734]
[1748378564175,6.73579505,109790.0,109780.0,26.92402302]
[1748378564747,6.73579505,109790.0,109780.0,26.87846577]
[1748378565154,6.73567595,109790.0,109780.0,26.83290852]
[1748378565362,6.73567595,109790.0,109780.0,26.81155149]
[1748378565558,6.73567595,109790.0,109780.0,26.76599424]
[1748378566148,6.73567595,109790.0,109780.0,26.72044443]
[1748378566548,6.73567595,109790.0,109780.0,26.67489462]
[1748378566963,6.72357595,109790.0,109780.0,26.62934481]
[1748378567164,6.68263547,109790.0,109780.0,26.62934481]
[1748378567437,6.39831547,109790.0,109780.0,26.583795]
[1748378567671,6.68223547,109790.0,109780.0,26.583795]
[1748378567874,6.68223547,109790.0,109780.0,26.53824519]
[1748378568109,6.72316072,109790.0,109780.0,26.5325552]
[1748378568342,6.72316072,109790.0,109780.0,26.52307253]
[1748378568549,6.72316072,109790.0,109780.0,26.50895744]
[1748378569166,6.72316072,109790.0,109780.0,26.46340763]
[1748378569612,6.72316072,109790.0,109780.0,26.41785782]
[1748378569796,6.73144072,109790.0,109780.0,26.41785782]
[1748378569935,6.73144072,109790.0,109780.0,26.37230801]
[1748378570130,6.73144072,109790.0,109780.0,26.3267582]
[1748378570333,6.77315942,109790.0,109780.0,26.29929954]
[1748378570556,6.77315942,109790.0,109780.0,26.25374973]
[1748378570838,6.67735942,109790.0,109780.0,26.25374973]
[1748378570968,6.67735942,109790.0,109780.0,26.20819992]
[1748378571377,6.67735942,109790.0,109780.0,26.16265011]
[1748378572021,6.63564072,109790.0,109780.0,26.1171003]
[1748378572225,1.58564072,109790.0,109780.0,26.1171003]
[1748378572435,6.59471547,109790.0,109780.0,26.07155049]
[1748378572634,6.63564072,109790.0,109780.0,26.07155049]
[1748378572841,6.59471547,109790.0,109780.0,26.02600068]
[1748378573061,6.56401011,109790.0,109780.0,26.02600068]
[1748378573274,6.56401011,109790.0,109780.0,25.98045087]
[1748378573725,6.56401011,109790.0,109780.0,25.93490106]
[1748378573932,6.6356025,109790.0,109780.0,25.93490106]
[1748378574146,6.59469256,109790.0,109780.0,25.88935125]
[1748378574758,6.59469256,109790.0,109780.0,25.84380144]
[1748378575122,6.59469256,109790.0,109780.0,25.79825163]
[1748378575618,6.59469256,109790.0,109780.0,25.75270182]
[1748378575954,6.59469256,109790.0,109780.0,25.70715201]
[1748378576603,6.61952203,109790.0,109780.0,25.6616022]
[1748378576812,6.61952203,109790.0,109780.0,25.6160622]
[1748378577034,6.58883958,109790.0,109780.0,25.40718926]
[1748378577249,6.05148539,109790.0,109780.0,19.92452543]
[1748378577462,6.19549147,109790.0,109780.0,19.36223913]
[1748378577674,6.10443752,109790.0,109780.0,18.9276771]
[1748378577884,7.3102673,109790.0,109780.0,18.67819667]
[1748378578149,6.10443752,109790.0,109780.0,17.89921001]
[1748378578391,7.2832673,109790.0,109780.0,17.482256]
[1748378578623,6.07743752,109790.0,109780.0,17.08433896]
[1748378578870,7.3102673,109790.0,109780.0,14.62319616]
[1748378579101,7.2832673,109790.0,109780.0,14.61767616]
[1748378579319,7.30078146,109790.0,109780.0,14.567618]
[1748378579550,7.30078146,109790.0,109780.0,14.475868]
[1748378579751,6.69107001,109790.0,109780.0,14.40470438]
[1748378579962,6.69107001,109790.0,109780.0,14.37280704]
[1748378580176,6.66624054,109790.0,109780.0,14.35525422]
[1748378580413,6.13488213,109790.0,109780.0,14.30634339]
[1748378580618,6.76695702,109790.0,109780.0,14.2260583]
[1748378580838,6.76695702,109790.0,109780.0,14.20766635]
[1748378580839,5.65878213,109790.0,109780.0,14.20766635]
[1748378581060,6.68877702,109790.0,109780.0,14.16216635]
[1748378581270,6.07240128,109790.0,109780.0,14.07106635]
[1748378581471,6.62065617,109790.0,109780.0,14.07106635]
[1748378581680,6.62065617,109790.0,109780.0,13.81562]
[1748378581911,6.63519702,109790.0,109780.0,13.76653]
[1748378582277,6.63519702,109790.0,109780.0,13.67543]
[1748378582608,6.63519702,109790.0,109780.0,13.66999]
[1748378582786,6.63519702,109790.0,109780.0,13.62443]
[1748378582968,6.56364054,109790.0,109780.0,13.61713918]
[1748378583247,5.53256565,109790.0,109780.0,13.52603918]
[1748378583383,5.96328565,109790.0,109780.0,13.50870836]
[1748378583583,6.56620054,109790.0,109780.0,13.50870836]
[1748378583952,6.56620054,109790.0,109780.0,13.46320836]
[1748378584153,6.56620054,109790.0,109780.0,13.36496983]
[1748378584330,6.56620054,109790.0,109780.0,13.31940983]
[1748378584491,6.56620054,109790.0,109780.0,13.2282822]
[1748378584693,6.56620054,109790.0,109780.0,13.18271457]
[1748378584892,6.56620054,109790.0,109780.0,13.13716457]
[1748378585096,6.59253218,109790.0,109780.0,13.04606457]
[1748378585297,6.27021218,109790.0,109780.0,13.00051457]
[1748378585537,6.63841501,109790.0,109780.0,12.90614262]
[1748378585761,6.03550012,109790.0,109780.0,12.86059262]
[1748378585940,6.63841501,109790.0,109780.0,12.86059262]
[1748378586142,6.63841501,109790.0,109780.0,12.81504262]
[1748378586347,6.63841501,109790.0,109780.0,12.76949262]
[1748378586811,6.63841501,109790.0,109780.0,12.72394262]
[1748378586951,6.63841501,109790.0,109780.0,12.67839262]
[1748378587488,6.63842275,109790.0,109780.0,12.63284262]
[1748378587697,6.63842275,109790.0,109780.0,12.58729262]
[1748378587917,6.63774275,109790.0,109780.0,12.58729262]
[1748378588137,6.63774275,109790.0,109780.0,12.54174262]
[1748378588342,6.63774275,109790.0,109780.0,12.37473943]
[1748378588552,6.63774275,109790.0,109780.0,12.32918943]
[1748378588762,6.63774275,109790.0,109780.0,12.28363399]
[1748378588979,6.63774275,109790.0,109780.0,12.23808399]
[1748378589195,6.63774275,109790.0,109780.0,12.19253399]
[1748378589346,6.63134275,109790.0,109780.0,12.14698399]
[1748378589575,6.63134275,109790.0,109780.0,12.10142855]
[1748378589785,6.63134275,109790.0,109780.0,12.05587855]
[1748378589985,6.30906275,109790.0,109780.0,12.11747855]
[1748378590300,6.63110275,109790.0,109780.0,12.07192311]
[1748378590480,1.58110275,109790.0,109780.0,12.02636767]
[1748378590691,6.59019863,109790.0,109780.0,12.02636767]
[1748378590908,6.63110275,109790.0,109780.0,11.98081223]
[1748378591139,6.63110275,109790.0,109780.0,11.93525679]
[1748378591336,6.63110275,109790.0,109780.0,11.88970135]
[1748378591699,6.63110275,109790.0,109780.0,11.88048925]
[1748378591913,5.70614786,109790.0,109780.0,11.8287346]
[1748378592141,6.65917488,109790.0,109780.0,11.8287346]
[1748378592350,6.65917488,109790.0,109780.0,11.78317916]
[1748378592559,6.65917488,109790.0,109780.0,11.69206828]
[1748378592772,6.70089179,109790.0,109780.0,11.64651284]
[1748378593206,6.70089179,109790.0,109780.0,11.6009574]
[1748378593418,6.70089179,109790.0,109780.0,11.55540196]
[1748378593626,6.01077966,109790.0,109780.0,11.50984652]
[1748378593840,6.33345966,109790.0,109780.0,11.50984652]
[1748378594051,6.33345966,109790.0,109780.0,11.46429108]
[1748378594302,6.33345966,109790.0,109780.0,11.41909108]
[1748378594532,6.67345966,109790.0,109780.0,11.41909108]
[1748378595748,6.67356458,109790.0,109780.0,11.41909108]
[1748378596208,6.24248458,109790.0,109780.0,11.41909108]
[1748378596436,6.56420458,109790.0,109780.0,11.41909108]
[1748378598658,6.24248458,109790.0,109780.0,11.41909108]
[1748378598870,6.56364458,109790.0,109780.0,11.41909108]
[1748378599295,6.56364458,109790.0,109780.0,11.37297975]
[1748378600574,6.56364458,109790.0,109780.0,11.34552195]
[1748378600991,6.61777135,109790.0,109780.0,11.34552195]
[1748378601703,6.67243135,109790.0,109780.0,11.34552195]
[1748378602189,6.67255663,109790.0,109780.0,11.34552195]
[1748378602961,6.7150056,109790.0,109780.0,11.34552195]
[1748378603223,6.74215773,109790.0,109780.0,11.34552195]
[1748378604324,6.75080341,109790.0,109780.0,11.34552195]
[1748378605468,6.68970293,109790.0,109780.0,11.32416593]
[1748378605895,6.59384293,109790.0,109780.0,11.32416593]
[1748378606135,5.99092804,109790.0,109780.0,11.32416593]
[1748378606344,6.59384293,109790.0,109780.0,11.32416593]
[1748378607184,6.64530183,109790.0,109780.0,11.32416593]
[1748378607614,6.32414183,109790.0,109780.0,11.32416593]
[1748378607826,6.64306183,109790.0,109780.0,11.32416593]
[1748378608447,6.04014798,109790.0,109780.0,11.32416593]
[1748378608690,6.64306287,109790.0,109780.0,11.32416593]
[1748378609380,6.65271086,109790.0,109780.0,11.32416593]
[1748378609598,6.65270681,109790.0,109780.0,11.32416593]
[1748378610546,6.65270681,109790.0,109780.0,11.29060662]
[1748378611040,6.04979192,109790.0,109780.0,11.29060662]
[1748378611251,6.65270681,109790.0,109780.0,11.29060662]
[1748378611468,6.59160477,109790.0,109780.0,11.27030614]
[1748378612202,6.64305457,109790.0,109780.0,11.27030614]
[1748378613346,6.04013968,109790.0,109780.0,11.27030614]
[1748378613556,6.64305457,109790.0,109780.0,11.27030614]
[1748378615612,6.64305457,109790.0,109780.0,11.24284852]
[1748378616918,6.64296247,109790.0,109780.0,11.24284852]
[1748378620615,6.6526026,109790.0,109780.0,11.24284852]
[1748378621247,6.7726026,109790.0,109780.0,11.24284852]
[1748378621453,6.7726026,109790.0,109780.0,11.20928921]
[1748378623914,6.7726026,109790.0,109780.0,10.97315613]
[1748378623915,6.71154847,109790.0,109780.0,10.97315613]
[1748378624140,6.68454847,109790.0,109780.0,10.97315613]
[1748378624595,6.76154847,109790.0,109780.0,10.97315613]
[1748378624840,6.71154847,109790.0,109780.0,10.97315613]
[1748378625261,6.68455946,109790.0,109780.0,10.97315613]
[1748378625528,6.74105393,109790.0,109780.0,10.95180021]
[1748378625977,6.83210788,109790.0,109780.0,10.95180021]
[1748378626504,6.88210788,109790.0,109780.0,10.95180021]
[1748378626708,6.83210788,109790.0,109780.0,10.95180021]
[1748378627348,6.88210788,109790.0,109780.0,10.95180021]
[1748378627558,6.83210788,109790.0,109780.0,10.95180021]
[1748378629334,6.83215384,109790.0,109780.0,10.95180021]
[1748378629545,6.80265937,109790.0,109780.0,10.95180021]
[1748378630224,6.19974448,109790.0,109780.0,10.95180021]
[1748378630434,6.80265937,109790.0,109780.0,10.95180021]
[1748378630658,6.80265937,109790.0,109780.0,10.92434258]
[1748378631527,6.80265937,109790.0,109780.0,10.87879385]
[1748378631947,6.80265937,109790.0,109780.0,10.83324512]
[1748378632163,6.80265937,109790.0,109780.0,10.78769639]
[1748378632374,6.80265937,109790.0,109780.0,10.76207639]
[1748378632815,6.19974448,109790.0,109780.0,10.76207639]
[1748378633020,6.80265937,109790.0,109780.0,10.76207639]
[1748378633457,6.80270126,109790.0,109780.0,10.76207639]
[1748378633675,6.81168134,109790.0,109780.0,10.76207639]
[1748378633885,6.26025129,109790.0,109780.0,10.76207639]
[1748378634565,6.86316618,109790.0,109780.0,10.76207639]
[1748378634774,6.91316618,109790.0,109780.0,10.76207639]
[1748378635205,6.31025129,109790.0,109780.0,10.76207639]
[1748378635419,6.91316618,109790.0,109780.0,10.76207639]
[1748378636760,7.02188618,109790.0,109780.0,10.76207639]
[1748378637007,7.02188618,109790.0,109780.0,1.68379767]
[1748378637224,6.90886646,109790.0,109780.0,0.93648888]
[1748378637432,6.9499416,109790.0,109780.0,0.91770109]
[1748378637651,6.9499416,109790.0,109780.0,0.87215236]
[1748378637881,6.9499416,109790.0,109780.0,0.78743173]
[1748378638097,6.9499416,109790.0,109780.0,0.78297973]
[1748378638324,6.9499416,109790.0,109780.0,0.6982591]
[1748378638538,6.9499416,109790.0,109780.0,0.65269891]
[1748378638754,7.00143055,109790.0,109780.0,0.64540928]
[1748378638972,7.00143055,109790.0,109780.0,0.56066733]
[1748378639196,7.00143055,109790.0,109780.0,0.51510714]
[1748378639411,7.10086663,109790.0,109780.0,0.50781751]
[1748378639628,7.10086663,109790.0,109780.0,0.43036519]
[1748378639629,7.01112305,109790.0,109780.0,0.43036519]
[1748378639845,7.01112305,109790.0,109780.0,0.3724262]
[1748378640059,7.01112305,109790.0,109780.0,0.32686601]
[1748378640279,7.01112305,109790.0,109780.0,0.28273425]
[1748378640770,7.01112305,109790.0,109780.0,0.23093462]
[1748378640976,7.01112305,109790.0,109780.0,0.14619286]
[1748378641181,7.10086663,109790.0,109780.0,0.13706486]
[1748378641398,7.07875171,109790.0,109780.0,0.12977523]
[1748378641607,7.13987611,109790.0,109780.0,0.05232291]
[1748378641820,7.13987611,109790.0,109770.0,7.88014228]
[1748378641821,1.31420085,109780.0,109770.0,7.88014228]
[1748378642025,7.25817723,109780.0,109770.0,7.88064073]
[1748378642233,7.29925237,109780.0,109770.0,7.82779091]
[1748378642440,7.29925237,109780.0,109770.0,7.78223072]
[1748378642661,7.29925237,109780.0,109770.0,7.77494109]
[1748378642875,7.29925237,109780.0,109770.0,7.1956309]
[1748378642876,7.23813641,109780.0,109770.0,7.1956309]
[1748378643087,7.23813641,109780.0,109770.0,7.18834127]
[1748378643288,7.26513641,109780.0,109770.0,7.14278108]
[1748378643500,7.26513641,109780.0,109770.0,7.08993126]
[1748378643715,7.57833641,109780.0,109770.0,7.04710196]
[1748378643926,7.57833641,109780.0,109770.0,7.05705214]
[1748378644141,7.57824533,109780.0,109770.0,7.05705214]
[1748378644378,7.97184533,109780.0,109770.0,7.00420232]
[1748378644608,7.99884533,109780.0,109770.0,6.99449269]
[1748378644847,9.08816022,109780.0,109770.0,6.66762272]
[1748378645068,9.15359027,109780.0,109770.0,5.83341357]
[1748378645323,9.10213443,109780.0,109770.0,5.82435657]
[1748378645529,9.24521605,109780.0,109770.0,5.68609396]
[1748378645945,9.20507749,109780.0,109770.0,5.63330433]
[1748378646160,9.23207749,109780.0,109770.0,5.55822645]
[1748378646368,9.26382958,109780.0,109770.0,5.55093682]
[1748378646574,9.26382958,109780.0,109770.0,5.49964719]
[1748378646879,9.26382958,109780.0,109770.0,5.42075506]
[1748378647099,9.26382958,109780.0,109770.0,5.32988906]
[1748378647348,9.26382958,109780.0,109770.0,5.27082906]
[1748378647566,9.26382958,109780.0,109770.0,5.1861473]
[1748378647782,9.26382958,109780.0,109770.0,5.17897813]
[1748378647998,9.26382958,109780.0,109770.0,5.1261885]
[1748378648274,8.66091469,109780.0,109770.0,5.07339887]
[1748378648707,8.66091469,109780.0,109770.0,5.02060834]
[1748378648922,8.66091469,109780.0,109770.0,4.97510834]
[1748378649164,8.66091469,109780.0,109770.0,4.92231781]
[1748378649385,8.66091469,109780.0,109770.0,4.91332281]
[1748378649617,8.66091469,109780.0,109770.0,4.85809228]
[1748378649852,8.66091469,109780.0,109770.0,4.79973624]
[1748378650070,8.66091469,109780.0,109770.0,4.78497624]
[1748378650314,8.66091469,109780.0,109770.0,4.77768571]
[1748378650539,8.80390798,109780.0,109770.0,4.71837471]
[1748378650759,8.80390798,109780.0,109770.0,4.71108418]
[1748378650984,8.31750798,109780.0,109770.0,4.66558418]
[1748378651206,8.23725827,109780.0,109770.0,4.61272784]
[1748378651443,8.14751469,109780.0,109770.0,4.5598715]
[1748378651661,8.17451469,109780.0,109770.0,4.5193745]
[1748378651875,8.17451469,109780.0,109770.0,4.47851441]
[1748378651876,8.14751469,109780.0,109770.0,4.47851441]
[1748378652126,8.17451469,109780.0,109770.0,4.4144086]
[1748378652348,8.17451469,109780.0,109770.0,4.36155807]
[1748378652600,8.17451469,109780.0,109770.0,4.34361807]
[1748378652837,7.5715998,109780.0,109770.0,4.33632754]
[1748378653052,8.11343163,109780.0,109770.0,4.2834712]
[1748378653276,8.11343163,109780.0,109770.0,4.2370582]
[1748378653499,7.40458163,109780.0,109770.0,3.47535186]
[1748378653703,7.40458163,109780.0,109770.0,3.42222986]
[1748378653909,7.40458163,109780.0,109770.0,3.41493933]
[1748378654121,7.40458163,109780.0,109770.0,3.36937352]
[1748378654369,7.40458163,109780.0,109770.0,3.30398041]
[1748378654580,7.40458163,109780.0,109770.0,3.14210896]
[1748378654581,7.49432521,109780.0,109770.0,3.14210896]
[1748378654791,7.49432521,109780.0,109770.0,3.10499843]
[1748378655006,7.46555197,109780.0,109770.0,3.0032579]
[1748378655441,7.46555197,109780.0,109770.0,2.95040156]
[1748378655645,7.46555197,109780.0,109770.0,2.90483777]
[1748378655895,7.40458163,109780.0,109770.0,2.85927398]
[1748378656106,7.45591987,109780.0,109770.0,2.60197822]
[1748378656311,7.45591987,109780.0,109770.0,2.55641443]
[1748378656515,7.40458163,109780.0,109770.0,2.51085064]
[1748378656757,7.39223063,109780.0,109770.0,2.49990064]
[1748378657230,7.43393936,109780.0,109770.0,1.28131685]
[1748378657435,7.43393936,109780.0,109770.0,1.23575306]
[1748378657899,7.43393936,109780.0,109770.0,1.23694927]
[1748378657900,7.10244489,109780.0,109770.0,1.23694927]
[1748378658132,7.10244489,109780.0,109770.0,1.19138548]
[1748378658579,7.10227559,109780.0,109770.0,1.17978122]
[1748378658800,7.10227559,109780.0,109770.0,1.14728122]
[1748378659010,7.12905445,109780.0,109770.0,1.10010677]
[1748378659458,7.12905445,109780.0,109770.0,1.08138677]
[1748378659673,7.12905445,109780.0,109770.0,0.99117339]
[1748378659879,7.12905445,109780.0,109770.0,0.94561067]
[1748378660308,7.12905445,109780.0,109770.0,0.90004795]
[1748378660541,7.12905445,109780.0,109770.0,0.82701969]
[1748378660759,7.12905445,109780.0,109770.0,0.78145697]
[1748378661179,7.12905445,109780.0,109770.0,0.76749425]
[1748378661384,7.12905445,109780.0,109770.0,0.72193153]
[1748378661591,7.12905445,109780.0,109770.0,0.69033153]
[1748378661810,7.08734715,109780.0,109770.0,0.64476881]
[1748378662020,7.08734715,109780.0,109770.0,0.59920609]
[1748378662453,7.08734715,109780.0,109770.0,0.58364337]
[1748378662671,7.06056829,109780.0,109770.0,0.53808337]
[1748378662924,7.06058906,109780.0,109770.0,0.47548337]
[1748378663159,7.06058906,109780.0,109770.0,0.42992065]
[1748378663537,7.06058906,109780.0,109770.0,0.44565793]
[1748378663745,7.06058906,109780.0,109770.0,0.40009521]
[1748378663988,7.05922906,109780.0,109770.0,0.35453249]
[1748378664178,7.05922906,109780.0,109770.0,0.30896977]
[1748378664332,6.14647417,109780.0,109770.0,0.30896977]
[1748378664534,7.17971638,109780.0,109770.0,0.28794978]
[1748378664752,7.20216395,109780.0,109770.0,0.28794978]
[1748378665089,7.20216395,109780.0,109770.0,0.27828978]
[1748378665303,7.20216395,109780.0,109770.0,0.23273978]
[1748378665502,7.20216395,109780.0,109770.0,0.21137994]
[1748378665651,7.20216395,109780.0,109770.0,0.18479994]
[1748378665841,6.18348906,109780.0,109770.0,0.18479994]
[1748378666056,5.98757722,109780.0,109770.0,0.18479994]
[1748378666273,5.99829722,109780.0,109770.0,0.18479994]
[1748378666489,6.33829722,109780.0,109770.0,0.18479994]
[1748378666664,6.38973055,109780.0,109770.0,0.18479994]
[1748378666866,6.33981103,109780.0,109770.0,0.18479994]
[1748378667320,6.31281103,109780.0,109770.0,0.18479994]
[1748378667531,6.34021103,109780.0,109770.0,0.18479994]
[1748378667743,6.36321103,109780.0,109770.0,0.18479994]
[1748378667949,6.33621103,109780.0,109770.0,0.18479994]
[1748378668193,6.39021103,109780.0,109770.0,0.18479994]
[1748378668603,6.36321103,109780.0,109770.0,0.18479994]
[1748378668809,6.31321103,109780.0,109770.0,0.18479994]
[1748378669021,6.34021103,109780.0,109770.0,0.18479994]
[1748378669219,6.39021103,109780.0,109770.0,0.18479994]
[1748378670480,6.43197729,109780.0,109770.0,0.18479994]
[1748378671120,6.4319558,109780.0,109770.0,0.18479994]
[1748378673246,6.39019745,109780.0,109770.0,0.18479994]
[1748378673469,6.41815383,109780.0,109770.0,0.18479994]
[1748378674555,6.41954873,109780.0,109770.0,0.18479994]
[1748378674785,5.86663384,109780.0,109770.0,0.18479994]
[1748378675013,6.46954873,109780.0,109770.0,0.18479994]
[1748378675454,6.46954873,109780.0,109770.0,0.15733991]
[1748378675663,6.46954873,109780.0,109770.0,0.1119344]
[1748378677826,6.46954873,109780.0,109770.0,0.09777441]
[1748378678949,6.46954873,109780.0,109770.0,0.05214207]
[1748378679168,6.44159235,109780.0,109770.0,0.05214207]
[1748378679614,6.44159235,109780.0,109770.0,0.04240207]
[1748378682935,1.28315278,109770.0,109760.0,8.90215577]
[1748378683140,6.36211175,109770.0,109760.0,8.90215577]
[1748378683356,6.40309115,109770.0,109760.0,8.90215577]
[1748378683577,6.33612077,109770.0,109760.0,8.90215577]
[1748378683827,6.40781988,109770.0,109760.0,8.90215577]
[1748378684714,6.53849988,109770.0,109760.0,8.90215577]
[1748378684923,6.56549988,109770.0,109760.0,8.90215577]
[1748378685595,6.68549988,109770.0,109760.0,8.88079684]
[1748378685810,6.68549988,109770.0,109760.0,8.94229684]
[1748378686695,6.74015988,109770.0,109760.0,8.94229684]
[1748378688861,6.79154414,109770.0,109760.0,8.94229684]
[1748378690134,6.78191069,109770.0,109760.0,8.74020557]
[1748378690549,6.78191069,109770.0,109760.0,8.71274409]
[1748378692250,6.78192153,109770.0,109760.0,8.71274409]
[1748378694438,6.74016742,109770.0,109760.0,8.71274409]
[1748378695279,6.78193266,109770.0,109760.0,8.71274409]
[1748378695497,6.74016742,109770.0,109760.0,8.71274409]
[1748378695935,6.83602742,109770.0,109760.0,8.71274409]
[1748378696188,6.74016742,109770.0,109760.0,8.71274409]
[1748378696620,6.74019259,109770.0,109760.0,8.71274409]
[1748378697899,7.04595259,109770.0,109760.0,8.71274409]
[1748378700132,7.15840694,109770.0,109760.0,8.71274409]
[1748378700586,7.81116869,109770.0,109760.0,8.66437396]